[Event "Titled Tuesday Blitz May 16 Early 2023"]
[White "Wimalasuriya, Kasun M."]
[Black "Tologon tegin, Semetei"]
[WhiteFideId "9906789"]
[BlackFideId "13800574"]
[WhiteElo "2227"]
[BlackElo "2247"]
[Result "1-0"]
[Round "01"]
[TimeControl "180+2"]
[Date "2023.05.16"]
[WhiteClock "0:00:05"]
[BlackClock "0:00:00"]

1. d4 {[%clk 0:02:59]}  d5 {[%clk 0:02:59]} 2. Nf3 {[%clk 0:02:57]}  e6 {[%clk 0:02:59]} 3. g3 {[%clk 0:02:57]}  c5 {[%clk 0:02:55]} 4. Bg2 {[%clk 0:02:57]}  Nf6 {[%clk 0:02:54]} 5. O-O {[%clk 0:02:57]}  Nc6 {[%clk 0:02:55]} 6. c4 {[%clk 0:02:56]}  dxc4 {[%clk 0:02:54]} 7. Qa4 {[%clk 0:02:56]}  Bd7 {[%clk 0:02:49]} 8. Qxc4 {[%clk 0:02:50]}  cxd4 {[%clk 0:02:49]} 9. Nxd4 {[%clk 0:02:49]}  Nxd4 {[%clk 0:02:44]} 10. Qxd4 {[%clk 0:02:45]}  Bc6 {[%clk 0:02:44]} 11. Bxc6+ {[%clk 0:02:43]}  bxc6 {[%clk 0:02:44]} 12. Qa4 {[%clk 0:02:42]}  Qb6 {[%clk 0:02:41]} 13. Nc3 {[%clk 0:02:37]}  Be7 {[%clk 0:02:30]} 14. Be3 {[%clk 0:02:34]}  Qb7 {[%clk 0:02:27]} 15. Rac1 {[%clk 0:02:33]}  O-O {[%clk 0:02:24]} 16. Rc2 {[%clk 0:02:32]}  c5 {[%clk 0:02:13]} 17. Rfc1 {[%clk 0:02:29]}  Rac8 {[%clk 0:02:10]} 18. Bg5 {[%clk 0:02:23]}  h6 {[%clk 0:01:51]} 19. Bxf6 {[%clk 0:02:21]}  Bxf6 {[%clk 0:01:52]} 20. Ne4 {[%clk 0:02:21]}  Be7 {[%clk 0:01:42]} 21. Nxc5 {[%clk 0:02:18]}  Bxc5 {[%clk 0:01:41]} 22. Rxc5 {[%clk 0:02:17]}  Rxc5 {[%clk 0:01:42]} 23. Rxc5 {[%clk 0:02:16]}  Qxb2 {[%clk 0:01:43]} 24. Qc4 {[%clk 0:02:13]}  g6 {[%clk 0:01:35]} 25. Rc7 {[%clk 0:02:12]}  a5 {[%clk 0:01:27]} 26. Rc5 {[%clk 0:02:08]}  a4 {[%clk 0:01:23]} 27. Rb5 {[%clk 0:02:01]}  Qd2 {[%clk 0:01:19]} 28. e3 {[%clk 0:01:55]}  Rd8 {[%clk 0:01:10]} 29. Qxa4 {[%clk 0:01:52]}  Qe2 {[%clk 0:00:59]} 30. Rb1 {[%clk 0:01:49]}  Rd2 {[%clk 0:00:58]} 31. Qf4 {[%clk 0:01:23]}  Kg7 {[%clk 0:00:51]} 32. Qe5+ {[%clk 0:01:19]}  Kh7 {[%clk 0:00:49]} 33. Qf6 {[%clk 0:01:17]}  Rd1+ {[%clk 0:00:44]} 34. Rxd1 {[%clk 0:01:16]}  Qxd1+ {[%clk 0:00:45]} 35. Kg2 {[%clk 0:01:16]}  Kg8 {[%clk 0:00:44]} 36. Qd4 {[%clk 0:01:04]}  Qb1 {[%clk 0:00:34]} 37. a4 {[%clk 0:01:02]}  Qb7+ {[%clk 0:00:34]} 38. Kg1 {[%clk 0:00:55]}  Qb1+ {[%clk 0:00:33]} 39. Kg2 {[%clk 0:00:55]}  Qb7+ {[%clk 0:00:34]} 40. e4 {[%clk 0:00:55]}  f5 {[%clk 0:00:17]} 41. Qe5 {[%clk 0:00:49]}  Kf7 {[%clk 0:00:16]} 42. a5 {[%clk 0:00:44]}  fxe4 {[%clk 0:00:16]} 43. Qf4+ {[%clk 0:00:44]}  Kg7 {[%clk 0:00:16]} 44. Qe3 {[%clk 0:00:43]}  h5 {[%clk 0:00:14]} 45. Qc3+ {[%clk 0:00:33]}  Kh7 {[%clk 0:00:11]} 46. Qe3 {[%clk 0:00:32]}  Kg7 {[%clk 0:00:11]} 47. Kh3 {[%clk 0:00:21]}  Qb5 {[%clk 0:00:09]} 48. Qxe4 {[%clk 0:00:13]}  Qxa5 {[%clk 0:00:09]} 49. Qxe6 {[%clk 0:00:11]}  Qb5 {[%clk 0:00:09]} 50. Qe7+ {[%clk 0:00:10]}  Kg8 {[%clk 0:00:10]} 51. Qe3 {[%clk 0:00:10]}  Qf1+ {[%clk 0:00:09]} 52. Kh4 {[%clk 0:00:10]}  Qd1 {[%clk 0:00:07]} 53. h3 {[%clk 0:00:10]}  Qd8+ {[%clk 0:00:05]} 54. Qg5 {[%clk 0:00:10]}  Qd4+ {[%clk 0:00:05]} 55. f4 {[%clk 0:00:10]}  Kf7 {[%clk 0:00:03]} 56. Qe5 {[%clk 0:00:06]}  Qf2 {[%clk 0:00:02]} 57. Qd5+ {[%clk 0:00:05]}  Kf6 {[%clk 0:00:03]} 58. Qd6+ {[%clk 0:00:05]}  Kg7 {[%clk 0:00:03]} 59. Qe7+ {[%clk 0:00:06]}  Kh6 {[%clk 0:00:03]} 60. Qf8+ {[%clk 0:00:06]}  Kh7 {[%clk 0:00:03]} 61. Qf7+ {[%clk 0:00:06]}  Kh6 {[%clk 0:00:03]} 62. Qf6 {[%clk 0:00:06]}  Kh7 {[%clk 0:00:00]} 63. f5 {[%clk 0:00:05]} 1-0


[Site "https://www.chess.com"]

[Event "Titled Tuesday Blitz May 16 Early 2023"]
[White "Ibadov, Dashgyn"]
[Black "Kiseljova, Marya"]
[WhiteFideId "24107514"]
[BlackFideId "4155009"]
[WhiteElo "2208"]
[BlackElo "1831"]
[Result "1-0"]
[Round "01"]
[TimeControl "180+2"]
[Date "2023.05.16"]
[WhiteClock "0:02:23"]
[BlackClock "0:01:36"]

1. e4 {[%clk 0:02:59]}  c5 {[%clk 0:02:59]} 2. Nf3 {[%clk 0:02:59]}  Nc6 {[%clk 0:02:55]} 3. Bb5 {[%clk 0:02:57]}  e5 {[%clk 0:02:55]} 4. c3 {[%clk 0:02:54]}  a6 {[%clk 0:02:51]} 5. Ba4 {[%clk 0:02:54]}  b5 {[%clk 0:02:52]} 6. Bc2 {[%clk 0:02:54]}  Bd6 {[%clk 0:02:47]} 7. O-O {[%clk 0:02:51]}  Nge7 {[%clk 0:02:45]} 8. a4 {[%clk 0:02:51]}  b4 {[%clk 0:02:45]} 9. d4 {[%clk 0:02:46]}  exd4 {[%clk 0:02:32]} 10. cxd4 {[%clk 0:02:45]}  cxd4 {[%clk 0:02:19]} 11. Re1 {[%clk 0:02:41]}  O-O {[%clk 0:02:16]} 12. e5 {[%clk 0:02:38]}  Bc5 {[%clk 0:02:13]} 13. Bxh7+ {[%clk 0:02:29]}  Kh8 {[%clk 0:02:05]} 14. Ng5 {[%clk 0:02:26]}  f6 {[%clk 0:01:48]} 15. Qh5 {[%clk 0:02:24]}  Ng8 {[%clk 0:01:36]} 16. Bxg8+ {[%clk 0:02:22]}  Kxg8 {[%clk 0:01:36]} 17. Qh7# {[%clk 0:02:23]} 1-0


[Site "https://www.chess.com"]

[Event "Titled Tuesday Blitz May 16 Early 2023"]
[White "Santarius, Erik"]
[Black "Dahlgren, James Allen"]
[WhiteFideId "2025817"]
[BlackFideId "22256873"]
[WhiteElo "2300"]
[BlackElo "2201"]
[Result "1/2-1/2"]
[Round "01"]
[TimeControl "180+2"]
[Date "2023.05.16"]
[WhiteClock "0:00:23"]
[BlackClock "0:00:44"]

1. e4 {[%clk 0:02:59]}  c5 {[%clk 0:02:58]} 2. Nf3 {[%clk 0:02:58]}  e6 {[%clk 0:02:59]} 3. c3 {[%clk 0:02:57]}  d5 {[%clk 0:03:00]} 4. exd5 {[%clk 0:02:57]}  exd5 {[%clk 0:03:00]} 5. d4 {[%clk 0:02:57]}  Nf6 {[%clk 0:03:01]} 6. Bb5+ {[%clk 0:02:56]}  Nc6 {[%clk 0:03:00]} 7. O-O {[%clk 0:02:55]}  Be7 {[%clk 0:02:59]} 8. dxc5 {[%clk 0:02:54]}  O-O {[%clk 0:03:00]} 9. Be3 {[%clk 0:02:53]}  Ne4 {[%clk 0:02:59]} 10. b4 {[%clk 0:02:48]}  Bf6 {[%clk 0:02:58]} 11. Nd4 {[%clk 0:02:36]}  a5 {[%clk 0:02:54]} 12. Bxc6 {[%clk 0:02:03]}  bxc6 {[%clk 0:02:55]} 13. Nxc6 {[%clk 0:02:03]}  Qc7 {[%clk 0:02:47]} 14. Nxa5 {[%clk 0:02:02]}  Nxc3 {[%clk 0:02:38]} 15. Nxc3 {[%clk 0:02:01]}  Bxc3 {[%clk 0:02:39]} 16. Rb1 {[%clk 0:01:56]}  Bf5 {[%clk 0:02:34]} 17. Rb3 {[%clk 0:01:53]}  Bxb4 {[%clk 0:02:21]} 18. Rxb4 {[%clk 0:01:51]}  Qxa5 {[%clk 0:02:15]} 19. Rd4 {[%clk 0:01:33]}  Qxc5 {[%clk 0:02:03]} 20. Rxd5 {[%clk 0:01:25]}  Qc2 {[%clk 0:02:03]} 21. Qxc2 {[%clk 0:01:02]}  Bxc2 {[%clk 0:02:01]} 22. Ra1 {[%clk 0:01:01]}  Rfd8 {[%clk 0:01:46]} 23. Rxd8+ {[%clk 0:00:45]}  Rxd8 {[%clk 0:01:47]} 24. Kf1 {[%clk 0:00:43]}  Rd1+ {[%clk 0:01:45]} 25. Rxd1 {[%clk 0:00:42]}  Bxd1 {[%clk 0:01:46]} 26. Ke1 {[%clk 0:00:43]}  Ba4 {[%clk 0:01:45]} 27. Kd2 {[%clk 0:00:43]}  f5 {[%clk 0:01:45]} 28. Kc3 {[%clk 0:00:43]}  Kf7 {[%clk 0:01:45]} 29. Kb4 {[%clk 0:00:42]}  Bc6 {[%clk 0:01:45]} 30. g3 {[%clk 0:00:37]}  Ke6 {[%clk 0:01:43]} 31. Kc5 {[%clk 0:00:34]}  Kd7 {[%clk 0:01:40]} 32. Kb6 {[%clk 0:00:31]}  h5 {[%clk 0:01:27]} 33. Bf4 {[%clk 0:00:27]}  Ba4 {[%clk 0:01:16]} 34. h4 {[%clk 0:00:25]}  Kc8 {[%clk 0:01:09]} 35. Be5 {[%clk 0:00:21]}  g6 {[%clk 0:01:08]} 36. Bd4 {[%clk 0:00:22]}  Be8 {[%clk 0:01:07]} 37. Bc3 {[%clk 0:00:20]}  Bd7 {[%clk 0:01:06]} 38. Bb4 {[%clk 0:00:21]}  Be8 {[%clk 0:01:06]} 39. a3 {[%clk 0:00:21]}  Bd7 {[%clk 0:01:06]} 40. Kc5 {[%clk 0:00:22]}  Kc7 {[%clk 0:01:06]} 41. Ba5+ {[%clk 0:00:22]}  Kb7 {[%clk 0:01:03]} 42. Kd6 {[%clk 0:00:23]}  Bc6 {[%clk 0:01:00]} 43. Ke7 {[%clk 0:00:21]}  Be4 {[%clk 0:00:52]} 44. f4 {[%clk 0:00:19]}  Bf3 {[%clk 0:00:48]} 45. Kf7 {[%clk 0:00:19]}  Bg4 {[%clk 0:00:48]} 46. Bb4 {[%clk 0:00:18]}  Ka6 {[%clk 0:00:47]} 47. Kxg6 {[%clk 0:00:19]}  Kb5 {[%clk 0:00:47]} 48. Kf6 {[%clk 0:00:20]}  Ka4 {[%clk 0:00:47]} 49. Ke5 {[%clk 0:00:21]}  Bh3 {[%clk 0:00:46]} 50. Kd4 {[%clk 0:00:22]}  Bg4 {[%clk 0:00:46]} 51. Kc3 {[%clk 0:00:23]}  Bh3 {[%clk 0:00:46]} 52. Bf8 {[%clk 0:00:24]}  Bg4 {[%clk 0:00:46]} 53. Kd4 {[%clk 0:00:24]}  Bh3 {[%clk 0:00:45]} 54. Ke3 {[%clk 0:00:25]}  Bg4 {[%clk 0:00:45]} 55. Kd3 {[%clk 0:00:26]}  Bh3 {[%clk 0:00:44]} 56. Kd4 {[%clk 0:00:26]}  Bg4 {[%clk 0:00:45]} 57. Ke5 {[%clk 0:00:27]}  Bh3 {[%clk 0:00:45]} 58. Kf6 {[%clk 0:00:27]}  Bg4 {[%clk 0:00:45]} 59. Kg6 {[%clk 0:00:23]}  Kb3 {[%clk 0:00:44]} 1/2-1/2


[Site "https://www.chess.com"]

[Event "Titled Tuesday Blitz May 16 Early 2023"]
[White "Deepak, Katiyar"]
[Black "Hajiyev, Kanan"]
[WhiteFideId "5026792"]
[BlackFideId "13404148"]
[WhiteElo "2069"]
[BlackElo "2103"]
[Result "0-1"]
[Round "01"]
[TimeControl "180+2"]
[Date "2023.05.16"]
[WhiteClock "0:00:05"]
[BlackClock "0:01:16"]

1. Nf3 {[%clk 0:02:57]}  d5 {[%clk 0:02:59]} 2. g3 {[%clk 0:02:57]}  Nf6 {[%clk 0:02:59]} 3. Bg2 {[%clk 0:02:57]}  g6 {[%clk 0:02:59]} 4. O-O {[%clk 0:02:57]}  Bg7 {[%clk 0:03:00]} 5. d3 {[%clk 0:02:58]}  O-O {[%clk 0:03:00]} 6. Nbd2 {[%clk 0:02:58]}  b6 {[%clk 0:03:01]} 7. e4 {[%clk 0:02:49]}  Bb7 {[%clk 0:03:00]} 8. Qe2 {[%clk 0:02:47]}  c5 {[%clk 0:02:59]} 9. Rd1 {[%clk 0:02:29]}  Nc6 {[%clk 0:02:58]} 10. c3 {[%clk 0:02:22]}  e5 {[%clk 0:02:58]} 11. exd5 {[%clk 0:02:13]}  Nxd5 {[%clk 0:02:57]} 12. Nc4 {[%clk 0:02:13]}  Re8 {[%clk 0:02:57]} 13. Bg5 {[%clk 0:02:08]}  f6 {[%clk 0:02:55]} 14. Be3 {[%clk 0:02:03]}  Kh8 {[%clk 0:02:53]} 15. a4 {[%clk 0:01:55]}  Qc7 {[%clk 0:02:45]} 16. Nh4 {[%clk 0:01:26]}  Rad8 {[%clk 0:02:37]} 17. Qd2 {[%clk 0:01:07]}  Nxe3 {[%clk 0:02:28]} 18. Qxe3 {[%clk 0:01:07]}  Ne7 {[%clk 0:02:27]} 19. Nf3 {[%clk 0:01:02]}  Nf5 {[%clk 0:02:26]} 20. Qe2 {[%clk 0:00:59]}  Rd7 {[%clk 0:02:25]} 21. Ne3 {[%clk 0:00:59]}  Nd6 {[%clk 0:02:19]} 22. Nd2 {[%clk 0:00:49]}  Bxg2 {[%clk 0:02:18]} 23. Kxg2 {[%clk 0:00:48]}  Red8 {[%clk 0:02:18]} 24. Ne4 {[%clk 0:00:38]}  Qc6 {[%clk 0:02:15]} 25. f3 {[%clk 0:00:33]}  Nf7 {[%clk 0:02:13]} 26. c4 {[%clk 0:00:26]}  f5 {[%clk 0:02:11]} 27. Nc3 {[%clk 0:00:23]}  h5 {[%clk 0:02:04]} 28. Ned5 {[%clk 0:00:19]}  Kh7 {[%clk 0:02:02]} 29. f4 {[%clk 0:00:18]}  exf4 {[%clk 0:01:59]} 30. gxf4 {[%clk 0:00:18]}  Bxc3 {[%clk 0:01:57]} 31. bxc3 {[%clk 0:00:18]}  Nh6 {[%clk 0:01:51]} 32. Qf3 {[%clk 0:00:17]}  Ng4 {[%clk 0:01:48]} 33. Re1 {[%clk 0:00:14]}  Qd6 {[%clk 0:01:44]} 34. h3 {[%clk 0:00:14]}  Nf6 {[%clk 0:01:44]} 35. Re5 {[%clk 0:00:13]}  Nxd5 {[%clk 0:01:42]} 36. Rxd5 {[%clk 0:00:14]}  Qf6 {[%clk 0:01:42]} 37. Re1 {[%clk 0:00:11]}  Qxc3 {[%clk 0:01:37]} 38. Rxd7+ {[%clk 0:00:10]}  Rxd7 {[%clk 0:01:38]} 39. Re8 {[%clk 0:00:09]}  Qxd3 {[%clk 0:01:30]} 40. Qxd3 {[%clk 0:00:09]}  Rxd3 {[%clk 0:01:31]} 41. Re7+ {[%clk 0:00:10]}  Kh6 {[%clk 0:01:31]} 42. Rxa7 {[%clk 0:00:09]}  Rd4 {[%clk 0:01:31]} 43. Rb7 {[%clk 0:00:08]}  Rxf4 {[%clk 0:01:30]} 44. Rxb6 {[%clk 0:00:08]}  Rxc4 {[%clk 0:01:31]} 45. a5 {[%clk 0:00:08]}  Ra4 {[%clk 0:01:31]} 46. a6 {[%clk 0:00:09]}  h4 {[%clk 0:01:31]} 47. Rc6 {[%clk 0:00:09]}  Ra2+ {[%clk 0:01:29]} 48. Kf3 {[%clk 0:00:08]}  Ra3+ {[%clk 0:01:29]} 49. Kg2 {[%clk 0:00:08]}  Kg5 {[%clk 0:01:27]} 50. Kf2 {[%clk 0:00:09]}  Rxh3 {[%clk 0:01:25]} 51. Rxc5 {[%clk 0:00:09]}  Ra3 {[%clk 0:01:25]} 52. Rc6 {[%clk 0:00:09]}  h3 {[%clk 0:01:24]} 53. Kg1 {[%clk 0:00:09]}  Ra2 {[%clk 0:01:23]} 54. Rb6 {[%clk 0:00:08]}  f4 {[%clk 0:01:20]} 55. Rb5+ {[%clk 0:00:08]}  Kg4 {[%clk 0:01:20]} 56. Rb6 {[%clk 0:00:09]}  g5 {[%clk 0:01:21]} 57. Rb3 {[%clk 0:00:07]}  f3 {[%clk 0:01:19]} 58. Rb1 {[%clk 0:00:05]}  Rxa6 {[%clk 0:01:19]} 59. Rf1 {[%clk 0:00:04]}  Ra2 {[%clk 0:01:17]} 60. Kh1 {[%clk 0:00:04]}  Kg3 {[%clk 0:01:16]} 61. Rg1+ {[%clk 0:00:04]}  Rg2 {[%clk 0:01:13]} 62. Rf1 {[%clk 0:00:03]}  Rh2+ {[%clk 0:01:13]} 63. Kg1 {[%clk 0:00:03]}  f2+ {[%clk 0:01:14]} 64. Rxf2 {[%clk 0:00:04]}  Rxf2 {[%clk 0:01:15]} 65. Kh1 {[%clk 0:00:05]}  Rf1# {[%clk 0:01:16]} 0-1


[Site "https://www.chess.com"]

[Event "Titled Tuesday Blitz May 16 Early 2023"]
[White "Gheorghiu, Calin"]
[Black "Ruge, Edison"]
[WhiteFideId "1200305"]
[BlackFideId "4401000"]
[WhiteElo "2223"]
[BlackElo "2175"]
[Result "1-0"]
[Round "01"]
[TimeControl "180+2"]
[Date "2023.05.16"]
[WhiteClock "0:00:05"]
[BlackClock "0:00:00"]

1. e4 {[%clk 0:02:59]}  e5 {[%clk 0:02:59]} 2. Nf3 {[%clk 0:02:59]}  Nc6 {[%clk 0:02:59]} 3. Bb5 {[%clk 0:02:59]}  f5 {[%clk 0:02:56]} 4. d3 {[%clk 0:02:50]}  fxe4 {[%clk 0:02:52]} 5. dxe4 {[%clk 0:02:50]}  Nf6 {[%clk 0:02:52]} 6. Nc3 {[%clk 0:02:50]}  Bb4 {[%clk 0:02:53]} 7. O-O {[%clk 0:02:44]}  Bxc3 {[%clk 0:02:52]} 8. bxc3 {[%clk 0:02:44]}  d6 {[%clk 0:02:52]} 9. Bg5 {[%clk 0:02:26]}  O-O {[%clk 0:02:50]} 10. Qd3 {[%clk 0:02:14]}  Kh8 {[%clk 0:02:35]} 11. a4 {[%clk 0:02:10]}  Qe8 {[%clk 0:02:33]} 12. a5 {[%clk 0:01:56]}  a6 {[%clk 0:02:32]} 13. Bc4 {[%clk 0:01:55]}  Qg6 {[%clk 0:02:30]} 14. Rfe1 {[%clk 0:01:51]}  Nh5 {[%clk 0:02:29]} 15. Qe3 {[%clk 0:01:02]}  Nf4 {[%clk 0:02:02]} 16. Bxf4 {[%clk 0:00:56]}  Rxf4 {[%clk 0:01:59]} 17. g3 {[%clk 0:00:54]}  Rf8 {[%clk 0:01:54]} 18. Nh4 {[%clk 0:00:46]}  Qh5 {[%clk 0:01:52]} 19. Be2 {[%clk 0:00:41]}  Qf7 {[%clk 0:01:47]} 20. Rf1 {[%clk 0:00:32]}  Bh3 {[%clk 0:01:42]} 21. Rfb1 {[%clk 0:00:32]}  Rab8 {[%clk 0:01:40]} 22. Rb2 {[%clk 0:00:28]}  Nd8 {[%clk 0:01:28]} 23. Rab1 {[%clk 0:00:27]}  h6 {[%clk 0:01:16]} 24. Bxa6 {[%clk 0:00:26]}  Ne6 {[%clk 0:01:02]} 25. Bxb7 {[%clk 0:00:25]}  Nc5 {[%clk 0:01:01]} 26. Bd5 {[%clk 0:00:24]}  Qh5 {[%clk 0:00:58]} 27. Rxb8 {[%clk 0:00:22]}  Bc8 {[%clk 0:00:28]} 28. Re1 {[%clk 0:00:07]}  Kh7 {[%clk 0:00:26]} 29. Ra8 {[%clk 0:00:06]}  Na6 {[%clk 0:00:18]} 30. c4 {[%clk 0:00:06]}  Nc5 {[%clk 0:00:18]} 31. c3 {[%clk 0:00:05]}  Na6 {[%clk 0:00:14]} 32. f3 {[%clk 0:00:05]}  Nc5 {[%clk 0:00:14]} 33. Rf1 {[%clk 0:00:04]}  g5 {[%clk 0:00:14]} 34. Nf5 {[%clk 0:00:04]}  Bxf5 {[%clk 0:00:13]} 35. Rxf8 {[%clk 0:00:04]}  Bh3 {[%clk 0:00:13]} 36. Rf7+ {[%clk 0:00:04]}  Kh8 {[%clk 0:00:12]} 37. Rf2 {[%clk 0:00:05]}  Ne6 {[%clk 0:00:08]} 38. Rb2 {[%clk 0:00:04]}  Qxf7 {[%clk 0:00:00]} 39. a6 {[%clk 0:00:05]} 1-0


[Site "https://www.chess.com"]

[Event "Titled Tuesday Blitz May 16 Early 2023"]
[White "Nikologorskiy, Konstantin"]
[Black "Floresvillar Gonzalez, Luis Migu"]
[WhiteFideId "24111708"]
[BlackFideId "5100542"]
[WhiteElo "2273"]
[BlackElo "2040"]
[Result "1-0"]
[Round "01"]
[TimeControl "180+2"]
[Date "2023.05.16"]
[WhiteClock "0:02:03"]
[BlackClock "0:00:35"]

1. d4 {[%clk 0:03:00]}  e6 {[%clk 0:02:55]} 2. c4 {[%clk 0:02:59]}  d5 {[%clk 0:02:55]} 3. Nf3 {[%clk 0:03:00]}  Nf6 {[%clk 0:02:55]} 4. g3 {[%clk 0:03:00]}  c6 {[%clk 0:02:54]} 5. Bg2 {[%clk 0:03:01]}  Bd6 {[%clk 0:02:49]} 6. O-O {[%clk 0:03:01]}  Nbd7 {[%clk 0:02:48]} 7. b3 {[%clk 0:03:02]}  Qe7 {[%clk 0:02:44]} 8. Bb2 {[%clk 0:03:02]}  O-O {[%clk 0:02:42]} 9. Nc3 {[%clk 0:03:01]}  Ne4 {[%clk 0:02:37]} 10. Nd2 {[%clk 0:02:54]}  f5 {[%clk 0:02:36]} 11. Ndxe4 {[%clk 0:02:54]}  fxe4 {[%clk 0:02:35]} 12. f3 {[%clk 0:02:55]}  exf3 {[%clk 0:02:33]} 13. exf3 {[%clk 0:02:56]}  dxc4 {[%clk 0:02:24]} 14. bxc4 {[%clk 0:02:56]}  e5 {[%clk 0:02:23]} 15. Re1 {[%clk 0:02:50]}  Qf6 {[%clk 0:02:23]} 16. Ne4 {[%clk 0:02:49]}  Qe7 {[%clk 0:02:15]} 17. Nxd6 {[%clk 0:02:41]}  Qxd6 {[%clk 0:02:14]} 18. dxe5 {[%clk 0:02:41]}  Qc5+ {[%clk 0:02:11]} 19. Qd4 {[%clk 0:02:41]}  Qxd4+ {[%clk 0:02:08]} 20. Bxd4 {[%clk 0:02:42]}  Re8 {[%clk 0:02:07]} 21. Rad1 {[%clk 0:02:37]}  Nb6 {[%clk 0:02:02]} 22. c5 {[%clk 0:02:35]}  Nd5 {[%clk 0:02:01]} 23. f4 {[%clk 0:02:36]}  Be6 {[%clk 0:02:00]} 24. Be4 {[%clk 0:02:30]}  Rad8 {[%clk 0:01:59]} 25. f5 {[%clk 0:02:30]}  Bf7 {[%clk 0:01:56]} 26. e6 {[%clk 0:02:30]}  Bh5 {[%clk 0:01:55]} 27. Rd2 {[%clk 0:02:25]}  Nf6 {[%clk 0:01:53]} 28. Bxf6 {[%clk 0:02:25]}  gxf6 {[%clk 0:01:51]} 29. Rd6 {[%clk 0:02:18]}  Kf8 {[%clk 0:01:45]} 30. h3 {[%clk 0:02:15]}  b6 {[%clk 0:01:13]} 31. g4 {[%clk 0:02:13]}  bxc5 {[%clk 0:01:13]} 32. Red1 {[%clk 0:02:12]}  Rxd6 {[%clk 0:01:08]} 33. Rxd6 {[%clk 0:02:10]}  Bf7 {[%clk 0:01:08]} 34. Bxc6 {[%clk 0:02:07]}  Re7 {[%clk 0:01:03]} 35. exf7 {[%clk 0:02:05]}  Kxf7 {[%clk 0:01:01]} 36. Bd5+ {[%clk 0:02:05]}  Kg7 {[%clk 0:01:00]} 37. Rd8 {[%clk 0:02:06]}  Re3 {[%clk 0:00:56]} 38. Kg2 {[%clk 0:02:06]}  Rd3 {[%clk 0:00:54]} 39. Rg8+ {[%clk 0:02:04]}  Kh6 {[%clk 0:00:53]} 40. Be6 {[%clk 0:02:05]}  Rd2+ {[%clk 0:00:51]} 41. Kg3 {[%clk 0:02:05]}  Rd3+ {[%clk 0:00:51]} 42. Kh4 {[%clk 0:02:06]}  c4 {[%clk 0:00:40]} 43. Bxc4 {[%clk 0:02:04]}  Ra3 {[%clk 0:00:40]} 44. Rf8 {[%clk 0:02:01]}  Kg7 {[%clk 0:00:36]} 45. Rf7+ {[%clk 0:02:01]}  Kh6 {[%clk 0:00:35]} 46. Rxf6+ {[%clk 0:02:02]}  Kg7 {[%clk 0:00:35]} 47. Rf7+ {[%clk 0:02:02]}  Kh6 {[%clk 0:00:35]} 48. g5# {[%clk 0:02:03]} 1-0


[Site "https://www.chess.com"]

[Event "Titled Tuesday Blitz May 16 Early 2023"]
[White "Han, Yichen"]
[Black "Tarnowska, Aleksandra"]
[WhiteFideId "1054430"]
[BlackFideId "1180967"]
[WhiteElo "2342"]
[BlackElo "1776"]
[Result "1-0"]
[Round "01"]
[TimeControl "180+2"]
[Date "2023.05.16"]
[WhiteClock "0:01:50"]
[BlackClock "0:00:00"]

1. d4 {[%clk 0:02:59]}  d5 {[%clk 0:02:59]} 2. c4 {[%clk 0:02:56]}  e6 {[%clk 0:02:57]} 3. g3 {[%clk 0:02:53]}  Nf6 {[%clk 0:02:56]} 4. Bg2 {[%clk 0:02:52]}  Bb4+ {[%clk 0:02:49]} 5. Nd2 {[%clk 0:02:48]}  O-O {[%clk 0:02:45]} 6. Nf3 {[%clk 0:02:44]}  dxc4 {[%clk 0:02:37]} 7. Qc2 {[%clk 0:02:41]}  Nc6 {[%clk 0:02:20]} 8. O-O {[%clk 0:02:31]}  Nxd4 {[%clk 0:01:48]} 9. Nxd4 {[%clk 0:02:21]}  Qxd4 {[%clk 0:01:48]} 10. Nxc4 {[%clk 0:02:22]}  Qd7 {[%clk 0:00:59]} 11. Bf4 {[%clk 0:02:19]}  Qe7 {[%clk 0:00:52]} 12. Rfd1 {[%clk 0:02:15]}  Bc5 {[%clk 0:00:35]} 13. Rac1 {[%clk 0:02:01]}  Bb6 {[%clk 0:00:16]} 14. Nxb6 {[%clk 0:01:57]}  axb6 {[%clk 0:00:15]} 15. Bxc7 {[%clk 0:01:58]}  Ne8 {[%clk 0:00:08]} 16. Bxb6 {[%clk 0:01:56]}  Rxa2 {[%clk 0:00:07]} 17. Bc5 {[%clk 0:01:55]}  Qc7 {[%clk 0:00:02]} 18. Bxf8 {[%clk 0:01:54]}  Qxc2 {[%clk 0:00:03]} 19. Rxc2 {[%clk 0:01:55]}  Kxf8 {[%clk 0:00:03]} 20. Rxc8 {[%clk 0:01:55]}  Ke7 {[%clk 0:00:03]} 21. Rb8 {[%clk 0:01:54]}  Rxb2 {[%clk 0:00:03]} 22. Rxb7+ {[%clk 0:01:54]}  Rxb7 {[%clk 0:00:03]} 23. Bxb7 {[%clk 0:01:55]}  Nd6 {[%clk 0:00:03]} 24. Bf3 {[%clk 0:01:55]}  f5 {[%clk 0:00:03]} 25. Rf1 {[%clk 0:01:56]}  g5 {[%clk 0:00:03]} 26. h4 {[%clk 0:01:57]}  g4 {[%clk 0:00:04]} 27. Bg2 {[%clk 0:01:58]}  e5 {[%clk 0:00:04]} 28. Re1 {[%clk 0:01:58]}  Kf6 {[%clk 0:00:05]} 29. Ra1 {[%clk 0:01:59]}  f4 {[%clk 0:00:04]} 30. Ra6 {[%clk 0:01:58]}  Ke6 {[%clk 0:00:05]} 31. Ra4 {[%clk 0:01:57]}  Kf5 {[%clk 0:00:04]} 32. Ra6 {[%clk 0:01:54]}  Nc4 {[%clk 0:00:04]} 33. gxf4 {[%clk 0:01:52]}  exf4 {[%clk 0:00:03]} 34. Rh6 {[%clk 0:01:52]}  Nd2 {[%clk 0:00:02]} 35. Rxh7 {[%clk 0:01:52]}  f3 {[%clk 0:00:03]} 36. Bf1 {[%clk 0:01:51]}  Kf4 {[%clk 0:00:01]} 37. e3+ {[%clk 0:01:50]}  Ke4 {[%clk 0:00:00]} 38. h5 {[%clk 0:01:50]} 1-0


[Site "https://www.chess.com"]